bitfinex/quotes_BTCUSD_20220307
["timestamp","ask_amount","ask_price","bid_price","bid_amount"]
[1646670625591,0.118437,39421.0,39417.0,0.21515205]
[1646670625891,0.19986058,39422.0,39417.0,0.27858605]
[1646670626191,0.118437,39421.0,39417.0,0.27858605]
[1646670627544,0.168437,39421.0,39417.0,0.27858605]
[1646670628243,0.168437,39421.0,39417.0,0.063434]
[1646670628544,0.18649062,39418.0,39417.0,0.063434]
[1646670628743,0.18649062,39418.0,39416.0,0.126868]
[1646670628942,0.06805362,39418.0,39416.0,0.126868]
[1646670629142,0.113441,39421.0,39416.0,0.126868]
[1646670629343,0.118437,39420.0,39419.0,0.00123616]
[1646670629945,0.32835159,39420.0,39419.0,0.00123616]
[1646670630345,0.37835159,39420.0,39419.0,0.00123616]
[1646670630547,1.12835159,39420.0,39416.0,0.126868]
[1646670630795,1.12835159,39420.0,39409.0,0.00033295]
[1646670630796,0.20580453,39419.0,39413.0,0.063466]
[1646670630996,0.118437,39418.0,39413.0,0.063466]
[1646670631195,0.12479115,39417.0,39413.0,0.063466]
[1646670631397,0.33995725,39416.0,39413.0,0.063466]
[1646670631596,0.33995725,39416.0,39411.0,0.126928]
[1646670631597,0.49185725,39416.0,39411.0,0.126928]
[1646670631801,0.1519,39415.0,39411.0,0.126928]
[1646670632099,0.118437,39414.0,39411.0,0.126928]
[1646670632698,0.17857031,39412.0,39411.0,0.126928]
[1646670632897,0.29700731,39412.0,39411.0,0.126928]
[1646670633297,0.118437,39412.0,39411.0,0.126928]
[1646670634946,0.563464,39415.0,39411.0,0.126928]
[1646670635142,0.010169,39413.0,39411.0,0.126928]
[1646670635748,0.118437,39412.0,39409.0,0.00033311]
[1646670635947,1.89380413,39411.0,39394.0,0.76876728]
[1646670636145,0.21139371,39396.0,39391.0,0.025]
[1646670636345,0.118437,39395.0,39394.0,0.063479]
[1646670636547,0.418437,39395.0,39394.0,0.063479]
[1646670636747,0.168437,39395.0,39394.0,0.063479]
[1646670637048,0.215137,39395.0,39392.0,0.126957]
[1646670637248,0.06964868,39394.0,39392.0,0.126957]
[1646670637448,0.118437,39393.0,39392.0,0.126957]
[1646670638892,0.118437,39393.0,39392.0,0.121957]
[1646670639698,0.118437,39393.0,39392.0,0.51617605]
[1646670639895,0.5,39394.0,39392.0,0.2856797]
[1646670640099,0.5,39394.0,39392.0,0.121957]
[1646670640100,0.118437,39393.0,39392.0,0.121957]
[1646670640295,0.237547,39394.0,39392.0,0.121957]
[1646670640694,0.5467,39400.0,39392.0,0.121957]
[1646670640999,0.5467,39400.0,39393.0,0.063479]
[1646670641000,0.5,39400.0,39393.0,0.063479]
[1646670641194,0.2088262,39404.0,39393.0,0.063479]
[1646670641396,0.2088262,39404.0,39394.0,0.00036544]
[1646670641794,0.2088262,39404.0,39395.0,0.15923112]
[1646670642047,0.21546543,39398.0,39396.0,0.063478]
[1646670643250,0.57895843,39398.0,39396.0,0.063478]
[1646670643452,0.063479,39395.0,39394.0,0.126994]
[1646670643952,0.215379,39395.0,39386.0,0.00146206]
[1646670644151,0.21197005,39389.0,39386.0,0.00140878]
[1646670644651,0.21176659,39388.0,39386.0,0.12842278]
[1646670644851,0.11902353,39390.0,39386.0,0.127014]
[1646670645051,0.19832183,39388.0,39386.0,0.12736619]
[1646670645993,0.19832183,39388.0,39386.0,0.127014]
[1646670646795,0.0467,39393.0,39386.0,0.127014]
[1646670647096,0.0467,39394.0,39386.0,0.127014]
[1646670647297,0.0467,39394.0,39386.0,0.36055479]
[1646670647496,0.0467,39394.0,39391.0,0.16247394]
[1646670647694,0.063479,39395.0,39391.0,0.22595694]
[1646670647900,0.40734129,39396.0,39392.0,0.063479]
[1646670648396,0.40734129,39396.0,39391.0,0.063483]
[1646670648694,0.40734129,39396.0,39392.0,0.00034112]
[1646670648695,0.45997478,39396.0,39392.0,0.00034112]
[1646670648895,0.40734129,39396.0,39392.0,0.00034112]
[1646670649740,0.40734129,39396.0,39391.0,0.063483]
[1646670649941,0.40734129,39396.0,39392.0,0.00034112]
[1646670650645,0.20754129,39396.0,39392.0,0.00034112]
[1646670650841,0.20754129,39396.0,39394.0,0.18145356]
[1646670651040,0.20754129,39396.0,39394.0,0.06348]
[1646670651440,0.0533555,39398.0,39394.0,0.06348]
[1646670651640,0.21338598,39395.0,39394.0,0.06348]
[1646670652042,0.17075439,39395.0,39394.0,0.06348]
[1646670653511,0.33957444,39395.0,39394.0,0.06348]
[1646670654413,1.7019,39394.0,39392.0,0.06837397]
[1646670654612,0.49856534,39393.0,39392.0,0.02462453]
[1646670654815,0.4486,39393.0,39386.0,0.0013675]
[1646670655013,0.063511,39391.0,39386.0,0.0013675]
[1646670655413,0.20593835,39389.0,39388.0,0.127016]
[1646670656960,1.7498,39394.0,39388.0,0.127016]
[1646670657160,1.55,39394.0,39388.0,0.127016]
[1646670657559,1.55,39394.0,39391.0,0.16139272]
[1646670657761,0.1998,39398.0,39391.0,0.22488472]
[1646670657960,0.16500735,39398.0,39391.0,0.22488472]
[1646670658163,0.010174,39395.0,39392.0,0.19677115]
[1646670658364,2.19096536,39402.0,39394.0,0.126939]
[1646670658561,2.06060636,39402.0,39394.0,0.126939]
[1646670658861,2.06060636,39402.0,39397.0,0.22073731]
[1646670659061,2.06060636,39402.0,39398.0,0.063476]
[1646670659062,2.06360636,39402.0,39398.0,0.063476]
[1646670659463,0.20446076,39399.0,39398.0,0.063476]
[1646670660707,0.35636076,39399.0,39398.0,0.063476]
[1646670661105,0.35936076,39399.0,39398.0,0.063476]
[1646670661306,0.50936076,39399.0,39398.0,0.063476]
[1646670661504,0.50936076,39399.0,39396.0,0.126952]
[1646670661505,0.2019,39398.0,39396.0,0.126952]
[1646670661804,0.57030296,39398.0,39396.0,0.126952]
[1646670662406,0.3,39397.0,39396.0,0.126952]
[1646670662708,1.2746,39397.0,39396.0,0.05390959]
[1646670662906,3.86381046,39397.0,39396.0,0.05390959]
[1646670663207,6.53334295,39397.0,39395.0,0.02453582]
[1646670663408,1.4746,39396.0,39395.0,0.02453582]
[1646670663607,1.5213,39396.0,39395.0,0.02453582]
[1646670663805,1.5713,39396.0,39395.0,0.02453582]
[1646670664106,1.8711,39396.0,39395.0,0.02453582]
[1646670664741,1.88378,39396.0,39395.0,0.02453582]
[1646670665141,1.11108,39396.0,39395.0,0.02453582]
[1646670665541,1.7711,39396.0,39395.0,0.02453582]
[1646670665741,1.791453,39396.0,39395.0,0.02453582]
[1646670666141,0.9984,39396.0,39395.0,0.02453582]
[1646670666343,0.56109,39396.0,39395.0,0.02453582]
[1646670666545,0.5017,39396.0,39395.0,0.02453582]
[1646670666946,0.3517,39396.0,39395.0,0.02453582]
[1646670667144,0.3557,39396.0,39395.0,0.02453582]
[1646670667346,0.1559,39396.0,39395.0,0.02453582]
[1646670667847,0.1559,39396.0,39395.0,0.22453582]
[1646670668297,0.1519,39396.0,39395.0,0.22453582]
[1646670668698,2.63002734,39397.0,39395.0,0.22453582]
[1646670669301,0.48141275,39399.0,39395.0,0.22453582]
[1646670669700,0.00090696,39396.0,39395.0,0.22562614]
[1646670671002,0.00490696,39396.0,39395.0,0.22562614]
[1646670672847,0.00090696,39396.0,39395.0,0.22562614]
[1646670673046,0.00490696,39396.0,39395.0,0.22562614]
[1646670673446,0.21906341,39397.0,39395.0,0.22562614]
[1646670673649,0.22923841,39397.0,39395.0,0.22562614]
[1646670673847,0.21906341,39397.0,39395.0,0.22562614]
[1646670674248,0.48050309,39399.0,39395.0,0.22562614]
[1646670674649,0.10063225,39399.0,39395.0,0.02562614]
[1646670674848,0.005,39400.0,39395.0,0.02562614]
[1646670675251,0.37417936,39403.0,39398.0,0.16982673]
[1646670675449,0.37417936,39403.0,39395.0,0.02562614]
[1646670675450,0.25557618,39396.0,39395.0,0.02562614]
[1646670676504,0.44897796,39396.0,39395.0,0.02562614]
[1646670678707,0.44897796,39396.0,39395.0,0.01737411]
[1646670679447,0.54897796,39396.0,39395.0,0.01737411]
[1646670680046,0.54897796,39396.0,39394.0,0.06586466]
[1646670680047,0.79757796,39396.0,39394.0,0.06586466]
[1646670680246,0.315411,39395.0,39391.0,0.00034185]
[1646670680446,0.362111,39395.0,39391.0,0.00034185]
[1646670680746,0.222891,39395.0,39391.0,0.12736085]
[1646670680946,0.222891,39395.0,39391.0,0.127019]
[1646670680947,0.176191,39395.0,39391.0,0.127019]
[1646670681148,0.22922026,39392.0,39391.0,0.12736084]
[1646670681552,0.1519,39394.0,39391.0,0.12736084]
[1646670681748,0.2019,39394.0,39391.0,0.12736084]
[1646670681947,0.05,39394.0,39391.0,0.12736084]
[1646670682147,0.15,39395.0,39391.0,0.127019]
[1646670682347,0.15,39395.0,39391.0,0.12736085]
[1646670683192,0.38333249,39394.0,39391.0,0.12736085]
[1646670683397,0.38333249,39394.0,39391.0,0.127019]
[1646670683593,0.38333249,39394.0,39391.0,0.12736084]
[1646670683594,0.5986,39393.0,39391.0,0.12736084]
[1646670683797,0.3,39392.0,39391.0,0.12736084]
[1646670683995,0.3467,39392.0,39391.0,0.12736084]
[1646670684196,0.4467,39392.0,39391.0,0.12736084]
[1646670684597,0.4467,39392.0,39391.0,0.127019]
[1646670684795,0.4967,39392.0,39391.0,0.127019]
[1646670685195,0.1967,39392.0,39391.0,0.127019]
[1646670685396,0.206877,39392.0,39391.0,0.127019]
[1646670686816,0.15,39392.0,39391.0,0.127019]
[1646670687065,0.1008,39392.0,39391.0,0.127019]
[1646670687265,0.2008,39392.0,39391.0,0.127019]
[1646670687465,0.1519,39391.0,39390.0,0.00033102]
[1646670687667,0.566219,39391.0,39390.0,0.00033102]
[1646670687866,0.766119,39391.0,39390.0,1.02e-06]
[1646670688066,6.9612469,39391.0,39384.0,0.00132427]
[1646670688267,0.9246,39383.0,39382.0,0.2379]
[1646670688472,0.9754,39383.0,39382.0,0.2379]
[1646670688666,1.0754,39383.0,39382.0,0.2379]
[1646670689370,1.08558,39383.0,39382.0,0.0001]
[1646670689567,1.08558,39383.0,39381.0,0.127058]
[1646670689767,0.2519,39382.0,39381.0,0.127058]
[1646670689967,0.3027,39382.0,39381.0,0.127058]
[1646670690818,0.2027,39382.0,39381.0,0.127058]
[1646670691021,0.3027,39382.0,39381.0,0.127058]
[1646670692120,0.1508,39382.0,39381.0,0.127058]
[1646670692319,0.6508,39382.0,39381.0,0.127058]
[1646670693118,0.83622521,39382.0,39381.0,0.127058]
[1646670693519,0.6508,39382.0,39381.0,0.127058]
[1646670694123,1.55,39381.0,39374.0,0.190585]
[1646670694324,0.114333,39380.0,39374.0,0.190585]
[1646670694570,0.114333,39380.0,39374.0,0.19204742]
[1646670694766,0.114333,39380.0,39375.0,0.263533]
[1646670695067,0.41897582,39376.0,39375.0,0.263533]
[1646670695265,0.56977582,39376.0,39375.0,0.2]
[1646670695464,0.1508,39376.0,39375.0,0.2]
[1646670696066,0.1508,39376.0,39375.0,0.263533]
[1646670696866,0.1508,39376.0,39374.0,0.19058915]
[1646670696867,1.55,39375.0,39374.0,0.19058915]
[1646670697072,1.55,39375.0,39368.0,0.00141682]
[1646670697073,2.3227,39374.0,39368.0,0.00141682]
[1646670697268,0.7727,39372.0,39368.0,0.00141682]
[1646670697466,0.0508,39371.0,39368.0,0.00141682]
[1646670697666,0.21717199,39370.0,39368.0,0.00141682]
[1646670697871,1.44383033,39370.0,39369.0,0.077096]
[1646670698215,1.44383033,39370.0,39360.0,0.254178]
[1646670698216,0.1271122,39368.0,39360.0,0.254178]
[1646670698417,0.8235,39367.0,39360.0,0.254178]
[1646670698614,0.8735,39367.0,39360.0,0.254178]
[1646670698816,0.20063225,39366.0,39360.0,0.254178]
[1646670699114,0.3186956,39362.0,39360.0,0.254178]
[1646670699313,0.0508,39361.0,39360.0,0.254178]
[1646670700116,0.1508,39361.0,39360.0,0.254178]
[1646670701116,0.1538,39361.0,39360.0,0.254178]
[1646670701326,0.0538,39361.0,39360.0,0.254178]
[1646670702370,0.0508,39361.0,39360.0,0.254178]
[1646670703370,0.10063225,39366.0,39360.0,0.554178]
[1646670703570,0.15143225,39366.0,39364.0,0.21893187]
[1646670703771,0.15143225,39366.0,39365.0,0.21941712]
[1646670703969,0.0508,39366.0,39365.0,0.21941712]
[1646670704572,0.0508,39366.0,39364.0,0.063535]
[1646670704771,0.17789259,39366.0,39364.0,0.063535]
[1646670705172,0.18089259,39366.0,39364.0,0.063535]
[1646670705470,0.17972396,39366.0,39364.0,0.063535]
[1646670705719,0.17972396,39366.0,39360.0,0.22421502]
[1646670705720,0.00070385,39362.0,39360.0,0.00424124]
[1646670706314,0.00070385,39362.0,39360.0,0.06778524]
[1646670706515,0.06166447,39362.0,39360.0,0.06778524]
[1646670708716,0.00070385,39362.0,39360.0,0.06778524]
[1646670709461,0.00070385,39362.0,39360.0,0.06485518]
[1646670709863,0.00070385,39362.0,39360.0,0.00131118]
[1646670710267,0.00070385,39362.0,39360.0,0.06485318]
[1646670711063,0.00470385,39362.0,39360.0,0.06485318]
[1646670712265,0.06214251,39361.0,39360.0,0.06485318]
[1646670713714,0.06214251,39361.0,39360.0,0.00131118]
[1646670714313,0.10070385,39362.0,39360.0,0.00131118]
[1646670714713,0.00070385,39362.0,39360.0,0.00131118]
[1646670715113,0.00470385,39362.0,39360.0,0.00131118]
[1646670715612,0.05809744,39362.0,39360.0,0.00131118]
[1646670716412,0.05409744,39362.0,39360.0,0.00131118]
[1646670717268,0.3,39361.0,39360.0,0.00131118]
[1646670717466,1.55,39360.0,39353.0,0.00136105]
[1646670717665,1.55,39360.0,39341.0,0.2379]
[1646670717666,0.7727,39352.0,39341.0,0.2379]
[1646670717871,0.7727,39347.0,39339.0,0.2379]
[1646670718061,0.26551135,39346.0,39339.0,0.2379]
[1646670718262,0.41683053,39344.0,39334.0,0.22380156]
[1646670718463,0.4508,39343.0,39334.0,0.22380156]
[1646670718662,0.12717945,39341.0,39334.0,0.22380156]
[1646670718863,0.0508,39340.0,39335.0,0.063589]
[1646670719469,0.0508,39346.0,39337.0,0.2]
[1646670719665,0.0508,39346.0,39338.0,0.3]
[1646670719873,0.0508,39346.0,39340.0,0.21212116]
[1646670720916,0.06357553,39345.0,39341.0,0.00030342]
[1646670721113,0.063582,39344.0,39341.0,0.00030342]
[1646670721314,0.114382,39344.0,39341.0,0.00030342]
[1646670721913,0.114382,39344.0,39341.0,0.063581]
[1646670721914,0.11300159,39344.0,39341.0,0.063581]
[1646670722115,0.0508,39344.0,39341.0,0.06394413]
[1646670722515,0.114379,39344.0,39341.0,0.06394413]
[1646670723118,0.114379,39344.0,39340.0,0.127152]
[1646670723415,0.114379,39344.0,39341.0,0.00036313]
[1646670723915,0.0508,39344.0,39341.0,0.16410361]
[1646670724317,0.0508,39344.0,39341.0,0.16374048]
[1646670724563,0.0508,39344.0,39341.0,0.16410361]
[1646670724765,0.0508,39344.0,39341.0,0.37247001]
[1646670724962,0.0508,39344.0,39342.0,0.17564821]
[1646670725165,0.0508,39344.0,39341.0,0.22768361]
[1646670725363,0.0508,39344.0,39341.0,0.2303051]
[1646670725564,0.0508,39344.0,39341.0,0.06620149]
[1646670725769,0.0508,39344.0,39341.0,0.06655209]
[1646670725964,0.0508,39344.0,39341.0,0.00297209]
[1646670726164,0.0508,39344.0,39341.0,0.19908885]
[1646670726365,0.0508,39344.0,39341.0,0.26266485]
[1646670726765,0.00090961,39345.0,39341.0,0.06619749]
[1646670726965,0.00090961,39345.0,39341.0,0.06654809]
[1646670727165,0.004,39344.0,39341.0,0.06654809]
[1646670727366,0.004,39344.0,39341.0,0.49228165]
[1646670727671,0.004,39344.0,39341.0,0.22700911]
[1646670727866,0.004,39344.0,39341.0,0.00262149]
[1646670728066,0.004,39344.0,39341.0,0.00297209]
[1646670728518,0.06448661,39345.0,39341.0,0.00297209]
[1646670728723,0.27796817,39345.0,39341.0,0.00297209]
[1646670728920,0.06358041,39344.0,39341.0,0.00297209]
[1646670729218,0.36358041,39344.0,39341.0,0.00262149]
[1646670729417,0.00097572,39343.0,39341.0,0.0003389]
[1646670729619,0.114388,39342.0,39341.0,0.0003389]
[1646670730420,0.414388,39342.0,39333.0,0.05]
[1646670730620,0.063592,39339.0,39335.0,0.063591]
[1646670730825,0.0508,39338.0,39335.0,0.063591]
[1646670732359,0.0508,39338.0,39336.0,0.16840807]
[1646670732562,0.0508,39338.0,39336.0,0.29557007]
[1646670732960,0.65177572,39343.0,39336.0,0.29557007]
[1646670733563,0.3248563,39343.0,39336.0,0.28557007]
[1646670733964,0.12716502,39342.0,39336.0,0.117162]
[1646670734165,0.26856411,39340.0,39338.0,0.00036151]
[1646670734365,0.0508,39339.0,39338.0,0.00036151]
[1646670735166,0.0508,39339.0,39337.0,0.00312052]
[1646670735167,0.0538,39339.0,39337.0,0.00312052]
[1646670735366,0.11739203,39339.0,39337.0,0.00348204]
[1646670735573,0.18098203,39339.0,39337.0,0.00348204]
[1646670735814,1.25,39338.0,39335.0,0.05662693]
[1646670736219,1.49711504,39338.0,39335.0,0.05662693]
[1646670736413,1.25,39338.0,39335.0,0.05662693]
[1646670736614,1.25,39338.0,39333.0,0.177167]
[1646670737014,1.251,39338.0,39333.0,0.177167]
[1646670737915,1.251,39338.0,39334.0,0.00034901]
[1646670737916,1.37818739,39338.0,39334.0,0.00034901]
[1646670738114,0.063593,39336.0,39334.0,0.00034901]
[1646670738519,0.0508,39337.0,39334.0,0.00034901]
[1646670738721,0.0508,39337.0,39333.0,0.113585]
[1646670738914,0.0508,39337.0,39333.0,0.11393401]
[1646670739315,0.0558,39337.0,39333.0,0.11393401]
[1646670739962,0.0558,39337.0,39333.0,0.113585]
[1646670740165,0.0558,39337.0,39333.0,0.11393401]
[1646670740563,0.0508,39337.0,39333.0,0.11393401]
[1646670741166,0.0508,39337.0,39333.0,0.113585]
[1646670741364,0.0508,39337.0,39335.0,0.15558986]
[1646670741666,0.0508,39337.0,39335.0,0.15058986]
[1646670741667,0.063589,39337.0,39335.0,0.15058986]
[1646670741866,1.31634495,39338.0,39335.0,0.14558986]
[1646670742168,0.00275676,39338.0,39335.0,0.39558986]
[1646670742367,0.00275676,39338.0,39336.0,0.22532]
[1646670742567,0.00275676,39338.0,39336.0,0.38510757]
[1646670742866,0.0999,39349.0,39341.0,0.25]
[1646670743064,0.0999,39349.0,39345.0,0.20216422]
[1646670743326,0.0999,39349.0,39346.0,0.22183961]
[1646670743526,0.0999,39349.0,39346.0,0.67183961]
[1646670743829,0.0999,39349.0,39346.0,0.45]
[1646670744426,0.0999,39349.0,39346.0,0.063565]
[1646670745830,0.163471,39349.0,39346.0,0.063565]
[1646670746630,0.173659,39349.0,39346.0,0.063565]
[1646670747065,0.163471,39349.0,39346.0,0.063565]
[1646670747467,0.163471,39349.0,39343.0,0.063579]
[1646670747866,0.29062921,39349.0,39343.0,0.063579]
[1646670748666,0.27087816,39345.0,39338.0,0.140736]
[1646670748870,0.063583,39343.0,39338.0,0.140736]
[1646670749169,0.063583,39343.0,39339.0,0.127157]
[1646670749672,0.10164004,39348.0,39339.0,0.267893]
[1646670749866,0.10095151,39348.0,39339.0,0.267893]
[1646670750065,0.00095151,39348.0,39340.0,0.21232004]
[1646670750466,0.00095151,39348.0,39347.0,0.15856157]
[1646670754228,0.00095151,39348.0,39347.0,0.18388157]
[1646670755069,0.00080651,39348.0,39347.0,0.18388157]
[1646670755273,0.00080651,39348.0,39347.0,0.32461757]
[1646670755474,0.00080651,39348.0,39347.0,0.29929757]
[1646670755670,0.00080651,39348.0,39347.0,0.32461757]
[1646670755869,0.001,39349.0,39348.0,1.22532]
[1646670756071,0.001,39349.0,39348.0,1.2893529]
[1646670756671,0.001,39349.0,39348.0,1.2640329]
[1646670756874,0.001,39349.0,39348.0,0.0690329]
[1646670757071,0.001,39349.0,39347.0,0.32461757]
[1646670757072,0.001,39349.0,39347.0,0.29929757]
[1646670759422,0.001,39349.0,39347.0,0.36857947]
[1646670759820,0.00101403,39348.0,39347.0,0.37071695]
[1646670760624,0.00101403,39348.0,39347.0,0.30143505]
[1646670761226,0.00101403,39348.0,39347.0,0.32675505]
[1646670761424,0.00101403,39348.0,39347.0,0.30143505]
[1646670766614,0.00101403,39348.0,39347.0,0.37363416]
[1646670767418,0.00101403,39348.0,39347.0,0.59844837]
[1646670767615,0.001,39349.0,39347.0,0.52624926]
[1646670769666,0.001,39349.0,39347.0,0.22481421]
[1646670769867,0.001,39349.0,39348.0,0.1832932]
[1646670770264,0.001,39349.0,39346.0,0.22527323]
[1646670770469,0.001,39349.0,39346.0,0.0009797]
[1646670773219,0.23596022,39349.0,39346.0,0.0009797]
[1646670774614,0.001,39349.0,39346.0,0.0009797]
[1646670775216,0.00092703,39348.0,39345.0,0.24717625]
[1646670777372,0.00492703,39348.0,39345.0,0.24717625]
[1646670777973,0.00492703,39348.0,39345.0,0.06455374]
[1646670778571,0.00092703,39348.0,39345.0,0.28884727]
[1646670778972,0.00092703,39348.0,39346.0,0.1622847]
[1646670779374,0.00392703,39348.0,39346.0,0.1622847]
[1646670779776,0.00392703,39348.0,39345.0,0.28884727]
[1646670780179,0.0048006,39348.0,39345.0,0.56202914]
[1646670780375,0.0048006,39348.0,39345.0,0.28884727]
[1646670780817,0.0018006,39348.0,39345.0,0.28884727]
[1646670781215,0.0018006,39348.0,39346.0,0.1980156]
[1646670781615,0.0018006,39348.0,39345.0,0.06455374]
[1646670782220,0.0508,39347.0,39345.0,0.00098974]
[1646670782417,0.3,39346.0,39345.0,0.00098974]
[1646670782619,0.0508,39346.0,39345.0,0.00098974]
[1646670784221,0.0018006,39348.0,39345.0,0.30098974]
[1646670784673,0.0018006,39348.0,39345.0,0.51928581]
[1646670784874,0.0018006,39348.0,39346.0,0.19840555]
[1646670785072,0.001,39349.0,39347.0,0.45]
[1646670785579,0.13013289,39353.0,39348.0,1.57532]
[1646670785779,0.20659622,39358.0,39349.0,0.063535]
[1646670785977,0.20659622,39360.0,39352.0,0.02532]
[1646670786178,0.20659622,39360.0,39354.0,0.48150135]
[1646670786377,0.20659622,39360.0,39357.0,0.18251716]
[1646670786676,0.20659622,39361.0,39357.0,0.40681069]
[1646670786876,0.20659622,39361.0,39357.0,0.47034869]
[1646670787075,0.20659622,39361.0,39358.0,0.127068]
[1646670787476,0.005,39361.0,39358.0,0.127068]
[1646670787680,0.00070385,39362.0,39361.0,0.50308021]
[1646670788321,0.00070385,39362.0,39361.0,0.40631483]
[1646670789319,0.20659622,39366.0,39361.0,0.40631483]
[1646670789517,0.20659622,39366.0,39360.0,0.063529]
[1646670789518,0.00019941,39363.0,39360.0,0.063529]
[1646670789720,0.00019941,39363.0,39361.0,0.22429353]
[1646670790319,0.06374641,39363.0,39360.0,0.063529]
[1646670790522,0.27014322,39363.0,39360.0,0.063529]
[1646670790721,0.21246946,39362.0,39360.0,0.063529]
[1646670791023,0.21246946,39362.0,39351.0,0.8434]
[1646670791024,0.41906568,39362.0,39354.0,0.127113]
[1646670791222,0.20659622,39360.0,39357.0,0.063558]
[1646670791520,0.20659622,39359.0,39357.0,0.063558]
[1646670791724,0.20659622,39359.0,39354.0,0.127113]
[1646670791725,0.50659622,39358.0,39354.0,0.127113]
[1646670791971,0.60521,39356.0,39354.0,0.127113]
[1646670792568,0.07080411,39355.0,39354.0,0.127113]
[1646670792769,0.217875,39355.0,39354.0,0.127113]
[1646670792968,0.668773,39356.0,39354.0,0.127113]
[1646670793367,0.678958,39356.0,39354.0,0.127113]
[1646670793769,0.668773,39356.0,39354.0,0.127113]
[1646670793969,0.20676495,39355.0,39354.0,0.127113]
[1646670795735,1.55,39354.0,39336.0,0.01269]
[1646670795934,0.15,39341.0,39336.0,0.01269]
[1646670796136,0.01327927,39337.0,39336.0,0.01269]
[1646670796527,0.06407927,39337.0,39336.0,0.01269]
[1646670797131,0.01327927,39337.0,39335.0,0.2820663]
[1646670798332,0.01327927,39337.0,39335.0,0.063593]
[1646670799228,0.26762686,39337.0,39335.0,0.063593]
[1646670799468,0.28693005,39336.0,39334.0,0.00035358]
[1646670799669,0.03710915,39331.0,39328.0,0.00141454]
[1646670799871,0.058596,39330.0,39328.0,0.00141454]
[1646670800069,0.058596,39330.0,39320.0,0.406315]
[1646670800269,0.058596,39330.0,39325.0,0.06423334]
[1646670800468,0.03710915,39331.0,39327.0,0.127197]
[1646670800669,0.03710915,39331.0,39328.0,0.008597]
[1646670801070,0.063592,39330.0,39328.0,0.008597]
[1646670801870,0.10070069,39331.0,39328.0,0.008597]
[1646670802270,0.10070069,39331.0,39330.0,0.15945441]
[1646670802271,0.03710915,39331.0,39330.0,0.15945441]
[1646670802671,0.03710915,39331.0,39328.0,0.008597]
[1646670803434,0.1007004,39331.0,39328.0,0.008597]
[1646670803830,0.03710915,39331.0,39329.0,0.21392979]
[1646670804227,0.03710915,39331.0,39329.0,0.26392979]
[1646670804427,0.0508,39342.0,39329.0,0.26392979]
[1646670804428,0.063576,39341.0,39333.0,0.063576]
[1646670804627,0.06357605,39339.0,39333.0,0.063576]
[1646670804828,0.06357605,39339.0,39334.0,0.07100286]
[1646670805030,0.06357605,39339.0,39333.0,0.063576]
[1646670806031,0.06357605,39339.0,39334.0,0.0544743]
[1646670806432,0.06357605,39339.0,39333.0,0.063576]
[1646670806433,0.3,39338.0,39333.0,0.063576]
[1646670806633,0.3508,39338.0,39333.0,0.063576]
[1646670806830,0.1508,39338.0,39333.0,0.063576]
[1646670807074,0.28049393,39335.0,39333.0,0.063576]
[1646670807273,0.0508,39334.0,39333.0,0.063576]
[1646670807470,0.0508,39334.0,39332.0,0.127151]
[1646670807668,0.1508,39334.0,39332.0,0.127151]
[1646670808774,0.3508,39334.0,39332.0,0.127151]
[1646670808973,0.0508,39334.0,39332.0,0.127151]
[1646670809172,0.31230371,39334.0,39332.0,0.127151]
[1646670809670,0.1,39333.0,39332.0,0.127151]
[1646670810842,0.1008,39334.0,39332.0,0.127151]
[1646670811642,0.0508,39334.0,39332.0,0.127151]
[1646670811844,0.06359443,39336.0,39332.0,0.127151]
[1646670812046,0.00089399,39338.0,39332.0,0.177151]
[1646670812444,0.00017829,39343.0,39332.0,0.177151]
[1646670812642,0.20822734,39343.0,39335.0,0.17832188]
[1646670812840,0.010189,39339.0,39335.0,0.17832188]
[1646670813043,0.06375829,39343.0,39335.0,0.17832188]
[1646670813244,0.50678327,39348.0,39335.0,0.17832188]
[1646670813442,0.12715705,39343.0,39340.0,0.19957682]
[1646670813648,0.00020112,39343.0,39340.0,0.19957682]
[1646670813850,0.00020112,39343.0,39340.0,0.24957682]
[1646670814475,0.06357845,39345.0,39340.0,0.26315182]
[1646670814774,0.06357845,39345.0,39340.0,0.113575]
[1646670814973,0.06357845,39345.0,39340.0,0.063575]
[1646670815475,0.063578,39344.0,39340.0,0.063575]
[1646670816480,0.063578,39344.0,39341.0,0.063581]
[1646670816674,0.163578,39344.0,39341.0,0.063581]
[1646670817275,0.24000001,39343.0,39340.0,0.063575]
[1646670817575,0.29000001,39343.0,39340.0,0.063575]
[1646670817776,0.06358043,39342.0,39340.0,0.063575]
[1646670818217,0.16358043,39342.0,39340.0,0.063575]
[1646670819419,0.1,39342.0,39341.0,0.20212767]
[1646670819819,0.29085385,39343.0,39341.0,0.20317812]
[1646670820420,0.24085385,39343.0,39341.0,0.25317812]
[1646670820622,0.25104185,39343.0,39341.0,0.25317812]
[1646670821021,4.0,39350.0,39343.0,0.06356]
[1646670821221,3.99898423,39350.0,39343.0,0.06356]
[1646670821420,3.61768223,39350.0,39344.0,0.063551]
[1646670822272,3.61768223,39350.0,39345.0,0.06355]
[1646670823072,3.61768223,39350.0,39347.0,0.18697018]
[1646670823273,3.61768223,39350.0,39345.0,0.06355]
[1646670823873,3.68125023,39350.0,39345.0,0.06355]
[1646670824678,0.20653424,39348.0,39345.0,0.06355]
[1646670824875,0.27010802,39348.0,39345.0,0.06355]
[1646670825276,0.063574,39347.0,39345.0,0.06355]
[1646670825475,0.19073025,39347.0,39345.0,0.06355]
[1646670828328,0.06377397,39348.0,39345.0,0.06355]
[1646670828329,0.00020019,39348.0,39345.0,0.06355]
[1646670828528,0.010188,39347.0,39345.0,0.06355]
[1646670828730,0.010188,39347.0,39345.0,0.127114]
[1646670828931,0.24161001,39349.0,39345.0,0.177114]
[1646670829130,3.66768223,39350.0,39345.0,0.177114]
[1646670829328,0.00020019,39348.0,39345.0,0.377114]
[1646670829773,3.61768223,39350.0,39345.0,0.00195092]
[1646670830174,3.23631923,39350.0,39345.0,0.00195092]
[1646670830773,2.85496323,39350.0,39345.0,0.00195092]
[1646670831274,2.85496323,39350.0,39345.0,0.12906492]
[1646670833928,2.85516292,39350.0,39345.0,0.12906492]
[1646670835028,0.00088509,39349.0,39347.0,0.00194634]
[1646670836530,0.06445409,39349.0,39347.0,0.00194634]